Workbook

Sheet Trips
A1: When | B1: til | C1: =TEXT(SUM(C2:C1019), "0") & " Days" -> 612 Days | D1: Gist | E1: To | F1: Party | H1: When | I1: til | J1: =TEXT(SUM(J2:J1019), "0") & " Days" -> 612 Days | K1: What | L1: Where | M1: =TEXT(SUM(M2:M1019), "0") & " Free" -> 82 Free | N1: Points | O1: $ | P1: Addr | Q1: N | R1: W
A2: 2010-06-18 | B2: 2010-06-19 | C2: =B2-A2 -> 1 | D2: Valerie & Jason | E2: VT | F2: M&C | H2: 2010-06-18 | I2: 2010-06-19 | J2: =I2-H2 -> 1 | K2: Strong House Inn | L2: Vergennes, VT | O2: $ | P2: 94 W Main St, Vergennes, VT | Q2: 44.161336 | R2: -73.261162
A4: 2010-07-25 | B4: 2010-07-26 | C4: =B4-A4 -> 1 | F4: R only | H4: 2010-07-25 | I4: 2010-07-26 | J4: =I4-H4 -> 1 | K4: Comfort Suites | L4: Mahwah, NJ | P4: 220 NJ-17, Mahwah, NJ | Q4: 41.093098 | R4: -74.156108
A5: 2010-07-26 | B5: 2010-07-27 | C5: =B5-A5 -> 1 | F5: R only | H5: 2010-07-26 | I5: 2010-07-27 | J5: 1 | K5: Quality Inn | L5: Montgomeryville, PA | P5: 678 Bethlehem Pike, Montgomeryville, PA | Q5: 40.254506 | R5: -75.248522
A6: 2010-07-27 | B6: 2010-07-28 | C6: =B6-A6 -> 1 | F6: R only | H6: 2010-07-27 | I6: 2010-07-28 | J6: =I6-H6 -> 1 | K6: Comfort Suites | L6: East Brunswick, NJ | P6: 555 Old Bridge Turnpike, East Brunswick, NJ | Q6: 40.460898 | R6: -74.401278
A8: 2010-08-28 | B8: 2010-08-29 | C8: =B8-A8 -> 1 | D8: Donna Sue | E8: VT | H8: 2010-08-28 | I8: 2010-08-29 | J8: 1 | K8: Holiday Inn Ex | L8: South Burlington, VT | P8: 1720 Shelburne Rd, South Burlington, VT | Q8: 44.424708 | R8: -73.210445
A10: 2010-09-02 | B10: 2010-09-12 | C10: =B10-A10 -> 10 | D10: Preedom | E10: CO | H10: 2010-09-02 | I10: 2010-09-03 | J10: 1 | K10: Comfort Inn | L10: Boston, MA | N10: 16000 | P10: 85 American Legion Hwy, Revere, MA | Q10: 42.411696 | R10: -71.001156
H11: 2010-09-03 | I11: 2010-09-04 | J11: 1 | K11: Bill & Cheryl | L11: Louisville, CO | O11: 0 | P11: 258 Short Place, Louisville, CO | Q11: 39.980837 | R11: -105.139726
H12: 2010-09-04 | I12: 2010-09-12 | J12: 8 | K12: Conrad | L12: Colorado Springs, CO | O12: 0 | P12: 7235 Montarbor Dr, Colorado Springs, CO | Q12: 38.926551 | R12: -104.756971
A14: 2010-11-26 | B14: 2010-11-27 | C14: =B14-A14 -> 1 | D14: Delaware Water Gap | E14: PA | F14: S&G | H14: 2010-11-26 | I14: 2010-11-27 | J14: 1 | K14: Econo Lodge | L14: Monticello, NY | O14: 76 | P14: 392 Broadway, Monticello, NY | Q14: 41.654717 | R14: -74.682942
A16: 2010-12-08 | B16: 2010-12-09 | C16: =B16-A16 -> 1 | F16: R only | H16: 2010-12-08 | I16: 2010-12-09 | J16: =I16-H16 -> 1 | K16: Comfort Suites | L16: Southington, CT | P16: 64 Knotter Dr, Southington, CT | Q16: 41.561849 | R16: -72.910188
A18: 2011-05-12 | B18: 2011-05-22 | C18: =B18-A18 -> 10 | D18: Preedom | E18: CO | H18: 2011-05-12 | I18: 2011-05-13 | J18: 1 | K18: Comfort Inn | L18: Boston, MA | O18: 141 | P18: 85 American Legion Hwy, Revere, MA | Q18: 42.411696 | R18: -71.001156
H19: 2011-05-13 | I19: 2011-05-22 | J19: 9 | K19: Conrad | L19: Colorado Springs, CO | O19: 0 | P19: 7235 Montarbor Dr, Colorado Springs, CO | Q19: 38.926551 | R19: -104.756971
A21: 2011-06-10 | B21: 2011-06-14 | C21: =B21-A21 -> 4 | D21: Quebec | E21: QC | F21: S&G | H21: 2011-06-10 | I21: 2011-06-11 | J21: =I21-H21 -> 1 | K21: Comfort Inn | L21: Beauport, QC | O21: 111 | P21: 5490 Boulevard Sainte-Anne, Boischatel, QC | Q21: 46.896522 | R21: -71.125576
H22: 2011-06-11 | I22: 2011-06-12 | J22: =I22-H22 -> 1 | K22: Comfort Inn | L22: Alma, QC | O22: 95 | P22: 870 Avenue du Pont S, Alma, QC | Q22: 48.537689 | R22: -71.647841
H23: 2011-06-12 | I23: 2011-06-13 | J23: 1 | K23: Comfort Inn | L23: Beauport, QC | O23: 111 | P23: 5490 Boulevard Sainte-Anne, Boischatel, QC | Q23: 46.896522 | R23: -71.125576
H24: 2011-06-13 | I24: 2011-06-14 | J24: =I24-H24 -> 1 | K24: Comfort Inn | L24: Riviere-Du-Loup, QC | O24: 130 | P24: 85 Boulevard Cartier, Rivière-du-Loup, QC | Q24: 47.850674 | R24: -69.539684
A26: 2011-07-11 | B26: 2011-07-12 | C26: =B26-A26 -> 1 | D26: Airgas | E26: CT | H26: 2011-07-11 | I26: 2011-07-12 | J26: =I26-H26 -> 1 | K26: Sleep Inn | L26: Niantic, CT | P26: 5 King Arthur Dr, Niantic, CT | Q26: 41.359338 | R26: -72.208523
A28: 2011-08-10 | B28: 2011-08-11 | C28: =B28-A28 -> 1 | D28: Airgas | E28: CT | H28: 2011-08-10 | I28: 2011-08-11 | J28: =I28-H28 -> 1 | K28: Sleep Inn | L28: Niantic, CT | P28: 5 King Arthur Dr, Niantic, CT | Q28: 41.359338 | R28: -72.208523
A30: 2011-09-29 | B30: 2011-09-30 | C30: =B30-A30 -> 1 | D30: Airgas | E30: NH | H30: 2011-09-29 | I30: 2011-09-30 | J30: =I30-H30 -> 1 | K30: Sleep Inn | L30: Londonderry, NH | P30: 72 Perkins Rd, Londonderry, NH | Q30: 42.915183 | R30: -71.373438
A32: 2011-10-02 | B32: 2011-10-03 | C32: =B32-A32 -> 1 | D32: Airgas | E32: CT | H32: 2011-10-02 | I32: 2011-10-03 | J32: =I32-H32 -> 1 | K32: Sleep Inn | L32: Niantic, CT | P32: 5 King Arthur Dr, Niantic, CT | Q32: 41.359338 | R32: -72.208523
A34: 2011-10-11 | B34: 2011-10-12 | C34: =B34-A34 -> 1 | D34: Airgas | E34: NY | H34: 2011-10-11 | I34: 2011-10-12 | J34: =I34-H34 -> 1 | K34: Comfort Inn | L34: Cortland, NY | P34: 2 1/2 Locust Ave, Cortland, NY | Q34: 42.610249 | R34: -76.168221
A36: 2011-11-08 | B36: 2011-11-17 | C36: =B36-A36 -> 9 | D36: Preedom | E36: CO | H36: 2011-11-08 | I36: 2011-11-09 | J36: =I36-H36 -> 1 | K36: Comfort Inn | L36: Revere, MA | O36: 130 | P36: 85 American Legion Hwy, Revere, MA | Q36: 42.411696 | R36: -71.001156
H37: 2011-11-09 | I37: 2011-11-16 | J37: =I37-H37 -> 7 | K37: Conrad | L37: Colorado Springs, CO | O37: 0 | P37: 7235 Montarbor Dr, Colorado Springs, CO | Q37: 38.926551 | R37: -104.756971
H38: 2011-11-16 | I38: 2011-11-17 | J38: =I38-H38 -> 1 | K38: Bill & Cheryl | L38: Louisville, CO | O38: 0 | P38: 258 Short Place, Louisville, CO | Q38: 39.980837 | R38: -105.139726
A40: 2011-11-25 | B40: 2011-11-26 | C40: =B40-A40 -> 1 | D40: Lake Placid | E40: NY | F40: S&G | H40: 2011-11-25 | I40: 2011-11-26 | J40: =I40-H40 -> 1 | K40: Econo Lodge | L40: Lake Placid, NY | P40: 5828 Cascade Rd, Lake Placid, NY | Q40: 44.269721 | R40: -73.975543
A42: 2012-01-10 | B42: 2012-01-13 | C42: =B42-A42 -> 3 | D42: Airgas | E42: OH | H42: 2012-01-10 | I42: 2012-01-13 | J42: =I42-H42 -> 3 | K42: Embassy Suites | L42: Independence, OH | P42: 5800 Rockside Woods Blvd N, Independence, OH | Q42: 41.402127 | R42: -81.64709
A44: 2012-05-22 | B44: 2012-05-31 | C44: =B44-A44 -> 9 | D44: Preedom | E44: CO | H44: 2012-05-22 | I44: 2012-05-23 | J44: =I44-H44 -> 1 | K44: Sleep Inn | L44: Londonderry, NH | P44: 72 Perkins Rd, Londonderry, NH | Q44: 42.915183 | R44: -71.373438
H45: 2012-05-23 | I45: 2012-05-31 | J45: =I45-H45 -> 8 | K45: Conrad | L45: Colorado Springs, CO | O45: 0 | P45: 7235 Montarbor Dr, Colorado Springs, CO | Q45: 38.926551 | R45: -104.756971
A47: 2012-06-16 | B47: 2012-06-30 | C47: =B47-A47 -> 14 | D47: Honeymoon | E47: PE, NS, NL | H47: 2012-06-16 | I47: 2012-06-17 | J47: =I47-H47 -> 1 | K47: Crowne Plaza | L47: Nashua, NH | P47: 2 Somerset Pkwy, Nashua, NH | Q47: 42.787294 | R47: -71.50408
H48: 2012-06-17 | I48: 2012-06-18 | J48: 1 | K48: Quality Inn | L48: St Andre, NB | P48: 10039 NB-144, Grand Falls, NB | Q48: 47.071341 | R48: -67.786535
H49: 2012-06-18 | I49: 2012-06-19 | J49: 1 | K49: Maritime Inn | L49: Port Hawksbury, NS | P49: 717 Reeves St, Port Hawkesbury, NS | Q49: 45.614151 | R49: -61.351021
H50: 2012-06-19 | I50: 2012-06-20 | J50: 1 | K50: Comfort Inn | L50: Corner Brook, NL | P50: 41 Maple Valley Rd, Corner Brook, NL | Q50: 48.943464 | R50: -57.916937
H51: 2012-06-20 | I51: 2012-06-22 | J51: 2 | K51: Triple Rose B&B | L51: St Anthony, NL | P51: St Anthony, NL | Q51: 51.448785 | R51: -55.645835
H52: 2012-06-22 | I52: 2012-06-24 | J52: 2 | K52: Northern Light Inn | L52: L'Anse au clair, NL | P52: L'Anse-au-Clair, NL | Q52: 51.433491 | R52: -57.063836
H53: 2012-06-24 | I53: 2012-06-25 | J53: 1 | K53: Torrent River Inn | L53: Hawkes Bay, NL | P53: NL-430, Hawke's Bay, NL | Q53: 50.610072 | R53: -57.169425
H54: 2012-06-25 | I54: 2012-06-27 | J54: 2 | K54: Robin Hood Hotel | L54: Grand Falls - Windsor, NL | P54: 78 Lincoln Rd, Grand Falls-Windsor, NL | Q54: 48.935265 | R54: -55.662156
H55: 2012-06-27 | I55: 2012-06-28 | J55: 1 | K55: Hotel Port aux basques | L55: Port aux basques, NL | P55: 2 Grand Bay Rd, Channel-Port aux Basques, NL | Q55: 47.589948 | R55: -59.164089
H56: 2012-06-28 | I56: 2012-06-29 | J56: 1 | K56: Mountain View Motel | L56: Pleasant Bay, NS | P56: 23659 Cabot Trail Road, Pleasant Bay, NS | Q56: 46.82009 | R56: -60.795845
H57: 2012-06-29 | I57: 2012-06-30 | J57: 1 | K57: HoJo by Wyndham | L57: Woodstock, NB | P57: 159 Route 555, Woodstock, NB | Q57: 46.147444 | R57: -67.610673
A59: 2012-11-29 | B59: 2012-12-05 | C59: =B59-A59 -> 6 | D59: Airgas | E59: OH | H59: 2012-11-29 | I59: 2012-12-05 | J59: =I59-H59 -> 6 | K59: Embassy Suites | L59: Independence, OH | P59: 5800 Rockside Woods Blvd N, Independence, OH | Q59: 41.402127 | R59: -81.64709
A61: 2013-01-19 | B61: 2013-02-24 | C61: =B61-A61 -> 36 | D61: US Tour | E61: TX, MX, CA, ON | H61: 2013-01-19 | I61: 2013-01-20 | J61: =I61-H61 -> 1 | K61: Quality Inn | L61: Hyde Park, NY | O61: 80 | P61: 4142 Albany Post Rd, Hyde Park, NY | Q61: 41.773975 | R61: -73.930021
H62: 2013-01-20 | I62: 2013-01-21 | J62: 1 | K62: Quality Inn | L62: Waynesboro, VA | M62: 1 | N62: 8000 | P62: 640 W Broad St, Waynesboro, VA | Q62: 38.069931 | R62: -78.89265
H63: 2013-01-21 | I63: 2013-01-22 | J63: 1 | K63: Quality Inn | L63: Salem, VA | M63: 1 | N63: 8000 | P63: 151 Wildwood Rd, Salem, VA | Q63: 37.289609 | R63: -80.096108
H64: 2013-01-22 | I64: 2013-01-23 | J64: 1 | K64: Candlewood Suites | L64: Enterprise, AL | M64: 1 | N64: 5000 | P64: 203 Brabham Dr, Enterprise, AL | Q64: 31.294982 | R64: -85.84696
H65: 2013-01-23 | I65: 2013-01-24 | J65: 1 | K65: Holiday Inn | L65: Beaumont, TX | M65: 1 | P65: 3950 I-10 South &, Walden Rd, Beaumont, TX | Q65: 30.039678 | R65: -94.158473
H66: 2013-01-24 | I66: 2013-02-04 | J66: 11 | K66: Conrad | L66: Del Rio, TX | P66: 211 Quail Creek Dr, Del Rio, TX | Q66: 29.412427 | R66: -100.913994
H67: 2013-02-04 | I67: 2013-02-05 | J67: 1 | K67: Quality Inn | L67: Las Cruces, NM | P67: 2200 S Valley Dr, Las Cruces, NM | Q67: 32.284416 | R67: -106.775486
H68: 2013-02-05 | I68: 2013-02-06 | J68: 1 | K68: Janette's | L68: Phoenix, AZ | P68: 2200 E Baseline Rd, Phoenix, AZ? | Q68: 33.377769 | R68: -112.030329
H69: 2013-02-06 | I69: 2013-02-08 | J69: 2 | K69: Queen Mary | L69: Long Beach, CA | O69: 250 | P69: 1126 Queens Hwy, Long Beach, CA | Q69: 33.753028 | R69: -118.19012
H70: 2013-02-08 | I70: 2013-02-09 | J70: 1 | K70: Janette's | L70: Phoenix, AZ | P70: 2200 E Baseline Rd, Phoenix, AZ? | Q70: 33.377769 | R70: -112.030329
H71: 2013-02-09 | I71: 2013-02-10 | J71: 1 | K71: Holiday Inn Ex | L71: Grand Canyon Village, AZ | P71: 226 AZ-64, Grand Canyon Village, AZ | Q71: 35.971343 | R71: -112.128322
H72: 2013-02-10 | I72: 2013-02-11 | J72: 1 | K72: Janette's | L72: Phoenix, AZ | P72: 2200 E Baseline Rd, Phoenix, AZ? | Q72: 33.377769 | R72: -112.030329
H73: 2013-02-11 | I73: 2013-02-12 | J73: 1 | K73: Quality Inn | L73: El Paso, TX | P73: 6099 Montana Ave, El Paso, TX | Q73: 31.786512 | R73: -106.412688
H74: 2013-02-12 | I74: 2013-02-19 | J74: 7 | K74: Conrad | L74: Del Rio, TX | P74: 211 Quail Creek Dr, Del Rio, TX | Q74: 29.412427 | R74: -100.913994
H75: 2013-02-19 | I75: 2013-02-20 | J75: 1 | K75: Holiday Inn | L75: Sherman, TX | N75: X | P75: 2909 Michelle Dr, Sherman, TX | Q75: 33.667418 | R75: -96.612725
H76: 2013-02-20 | I76: 2013-02-21 | J76: 1 | K76: Candlewood Suites | L76: Memphis, TN | N76: X | P76: 1776 Whitten Rd, Memphis, TN | Q76: 35.173483 | R76: -89.8358
H77: 2013-02-21 | I77: 2013-02-22 | J77: 1 | K77: Holiday Inn | L77: Elizabethtown, KY | N77: X | P77: 2009 N Mulberry St, Elizabethtown, KY | Q77: 37.713952 | R77: -85.826785
H78: 2013-02-22 | I78: 2013-02-23 | J78: 1 | K78: Candlewood Suites | L78: North Olmsted, OH | P78: 24741 Country Club Blvd, North Olmsted, OH | Q78: 41.41558 | R78: -81.895598
H79: 2013-02-23 | I79: 2013-02-24 | J79: 1 | K79: Holiday Inn | L79: Grand Island, NY | P79: 2761 Long Road, Grand Island, NY | Q79: 43.050545 | R79: -78.992348
A81: 2013-03-17 | B81: 2013-03-23 | C81: =B81-A81 -> 6 | D81: Williamsburg | E81: VA | F81: J&K | H81: 2013-03-17 | I81: 2013-03-18 | J81: =I81-H81 -> 1 | K81: Econo Lodge | L81: Mount Laurel, NJ | M81: 1 | N81: 8000 | P81: 611 Fellowship Rd, Mt Laurel, NJ | Q81: 39.929185 | R81: -74.962585
H82: 2013-03-18 | I82: 2013-03-21 | J82: =I82-H82 -> 3 | K82: Holiday Inn | L82: Williamsburg, VA | O82: 320 | P82: 515 Bypass Rd, Williamsburg, VA | Q82: 37.285269 | R82: -76.710332
H83: 2013-03-21 | I83: 2013-03-22 | J83: =I83-H83 -> 1 | K83: Econo Lodge | L83: Charlottesville, VA | M83: 1 | N83: 6000 | P83: 2014 Holiday Dr, Charlottesville, VA | Q83: 38.058413 | R83: -78.492419
H84: 2013-03-22 | I84: 2013-03-23 | J84: =I84-H84 -> 1 | K84: Quality Inn | L84: Allentown, PA | M84: 1 | N84: 8000 | P84: 1715 Plaza Ln, Allentown, PA | Q84: 40.62137 | R84: -75.504356
A86: 2013-04-25 | B86: 2013-04-28 | C86: =B86-A86 -> 3 | D86: Martha's Vineyard | E86: MA | H86: 2013-04-25 | I86: 2013-04-28 | J86: =I86-H86 -> 3 | K86: Ross&Kit | L86: Oak Bluffs, MA | P86: 68 Barnes Rd, Vineyard Haven, MA | Q86: 41.447205 | R86: -70.584996
A88: 2013-05-13 | B88: 2013-05-18 | C88: =B88-A88 -> 5 | D88: Blue Ridge Parkway | E88: TN | H88: 2013-05-13 | I88: 2013-05-14 | J88: =I88-H88 -> 1 | K88: Econo Lodge | L88: Staunton, VA | M88: 1 | N88: 8000 | P88: 1031 Richmond Ave, Staunton, VA 24401 | Q88: 38.13609 | R88: -79.043778
H89: 2013-05-14 | I89: 2013-05-15 | J89: =I89-H89 -> 1 | K89: Holiday Inn Ex | L89: Blowing Rock, NC | P89: 8412 Valley Blvd, Blowing Rock, NC | Q89: 36.124706 | R89: -81.67147
H90: 2013-05-15 | I90: 2013-05-16 | J90: 1 | K90: Holiday Inn Ex | L90: Cherokee, NC | P90: 376 Paint Town Rd, Cherokee, NC | Q90: 35.468523 | R90: -83.304646
H91: 2013-05-16 | I91: 2013-05-17 | J91: 1 | K91: Econo Lodge | L91: Bluefield, WV | M91: 1 | N91: 8000 | P91: 3400 E Cumberland Rd, Bluefield, WV | Q91: 37.258953 | R91: -81.194451
H92: 2013-05-17 | I92: 2013-05-18 | J92: 1 | K92: Candlewood Suites | L92: Chambersburg, PA | P92: 231 Walker Rd, Chambersburg, PA | Q92: 39.934493 | R92: -77.633784
A94: 2013-06-29 | B94: 2013-06-30 | C94: =B94-A94 -> 1 | D94: Jessica & Dave | E94: NY | H94: 2013-06-29 | I94: 2013-06-30 | J94: 1 | K94: Comfort Inn | L94: Rochester, NY | O94: 99 | P94: 2729 Monroe Avenue, Rochester, NY | Q94: 43.112743 | R94: -77.550889
A96: 2013-11-16 | B96: 2013-11-17 | C96: =B96-A96 -> 1 | D96: Birthday | E96: QC | H96: 2013-11-16 | I96: 2013-11-17 | J96: 1 | K96: Econo Lodge | L96: Boischatel, QC | M96: 1 | N96: 8000 | P96: 5490 Boulevard Sainte-Anne, Boischatel, QC | Q96: 46.896522 | R96: -71.125576
A98: 2014-05-01 | B98: 2014-05-05 | C98: =B98-A98 -> 4 | D98: Chad | E98: OH | H98: 2014-05-01 | I98: 2014-05-02 | J98: 1 | K98: Econo Lodge | L98: Albany, NY | O98: 57 | P98: 1630 Central Ave, Albany, NY 12205 | Q98: 42.718687 | R98: -73.836355
H99: 2014-05-02 | I99: 2014-05-04 | J99: 2 | K99: Chad | L99: Bedford, OH | P99: 60 First Ave, Bedford, OH | Q99: 41.380309 | R99: -81.529267
H100: 2014-05-04 | I100: 2014-05-05 | J100: 1 | K100: Comfort Inn | L100: Jamestown, NY | O100: 96 | P100: 2800 N Main Street Ext, Jamestown, NY | Q100: 42.119739 | R100: -79.239746
A102: 2014-07-04 | B102: 2014-07-05 | C102: =B102-A102 -> 1 | D102: 4th of July | E102: MA | H102: 2014-07-04 | I102: 2014-07-05 | J102: 1 | K102: Holiday Inn | L102: Tewksbury, MA | O102: 109 | P102: 4 Highwood Dr, Tewksbury, MA | Q102: 42.645217 | R102: -71.232984
A104: 2014-09-06 | B104: 2014-09-07 | C104: =B104-A104 -> 1 | D104: With Dad | E104: QC | F104: G | H104: 2014-09-06 | I104: 2014-09-07 | J104: 1 | K104: Econo Lodge | L104: Boischatel, QC | O104: 112 | P104: 5490 Boulevard Sainte-Anne, Boischatel, QC | Q104: 46.896522 | R104: -71.125576
A106: 2014-10-04 | B106: 2014-10-25 | C106: =B106-A106 -> 21 | D106: Preedom | E106: TX, MO | H106: 2014-10-04 | I106: 2014-10-05 | J106: 1 | K106: Quality Inn | L106: Danbury, CT | O106: 90 | P106: 78 Federal Rd, Danbury, CT | Q106: 41.419069 | R106: -73.420476
H107: 2014-10-05 | I107: 2014-10-06 | J107: 1 | K107: Comfort Inn | L107: Weirton, WV | O107: 103 | P107: 167 Amerihost Dr, Weirton, WV | Q107: 40.395335 | R107: -80.550281
H108: 2014-10-06 | I108: 2014-10-07 | J108: 1 | K108: Econo Lodge | L108: Cloverdale, IN | O108: 57 | P108: 1010 N Main St, Cloverdale, IN 46120 | Q108: 39.527881 | R108: -86.80264
H109: 2014-10-07 | I109: 2014-10-08 | J109: 1 | K109: Camping | L109: Lebanon, MO | O109: 20 | P109: Bennett Spring St Pk, Lebanon, MO | Q109: 37.724118 | R109: -92.867695
H110: 2014-10-08 | I110: 2014-10-09 | J110: 1 | K110: Comfort Inn | L110: Wichita Falls, TX | O110: 66 | P110: 1317 Kenley Ave, Wichita Falls, TX | Q110: 33.934393 | R110: -98.518705
H111: 2014-10-09 | I111: 2014-10-21 | J111: 12 | K111: Conrad | L111: Del Rio, TX | P111: 211 Quail Creek Dr, Del Rio, TX | Q111: 29.412427 | R111: -100.913994
H112: 2014-10-21 | I112: 2014-10-22 | J112: 1 | K112: Econo Lodge | L112: Canton, MS | M112: 1 | N112: 8000 | P112: 125 Soldiers Colony Rd, Canton, MS | Q112: 32.605024 | R112: -90.067004
H113: 2014-10-22 | I113: 2014-10-23 | J113: 1 | K113: Desoto St Pk Cabin | L113: Fort Payne, AL | P113: Blalock Dr, Fort Payne, AL | Q113: 34.490968 | R113: -85.614277
H114: 2014-10-23 | I114: 2014-10-24 | J114: 1 | K114: Comfort Inn | L114: Cherokee, NC | O114: 94 | P114: 376 Paint Town Rd, Cherokee, NC | Q114: 35.468523 | R114: -83.304646
H115: 2014-10-24 | I115: 2014-10-25 | J115: 1 | K115: Econo Lodge | L115: Winchester, VA | M115: 1 | N115: 8000 | P115: 1593 Martinsburg Pike, Winchester, VA | Q115: 39.21703 | R115: -78.140286
A117: 2015-03-14 | B117: 2015-03-21 | C117: =B117-A117 -> 7 | D117: South Carolina | E117: SC | F117: J&K | H117: 2015-03-14 | I117: 2015-03-15 | J117: 1 | K117: Holiday Inn Ex | L117: North East, MD | M117: 2 | P117: 101 Hotel Plaza, North East, MD | Q117: 39.620633 | R117: -75.951504
H118: 2015-03-15 | I118: 2015-03-16 | J118: 1 | L118: Kitty Hawk, SC | P118: 1701 S Virginia Dare Trail, Kill Devil Hills, NC | Q118: 35.999401 | R118: -75.647635
H119: 2015-03-16 | I119: 2015-03-18 | J119: 2 | K119: Clarion Inn | L119: Charleston, SC | P119: 310 Johnnie Dodds Blvd, Mt Pleasant, SC | Q119: 32.803842 | R119: -79.895014
H120: 2015-03-18 | I120: 2015-03-20 | J120: 2 | L120: Greenville, SC | P120: 2756 Laurens Rd, Greenville, SC | Q120: 34.815404 | R120: -82.339993
H121: 2015-03-20 | I121: 2015-03-21 | J121: 1 | K121: Holiday Inn Ex | L121: North East, MD | M121: 2 | P121: 101 Hotel Plaza, North East, MD | Q121: 39.620633 | R121: -75.951504
A123: 2015-05-23 | B123: 2015-05-24 | C123: =B123-A123 -> 1 | D123: Acadia | E123: ME | F123: G | H123: 2015-05-23 | I123: 2015-05-24 | J123: 1 | K123: Holiday Inn | L123: Bangor, ME | O123: 128 | P123: 404 Odlin Rd, Bangor, ME | Q123: 44.786241 | R123: -68.813013
A125: 2015-09-24 | B125: 2015-09-26 | C125: =B125-A125 -> 2 | D125: Kayak in York | E125: ME | H125: 2015-09-24 | I125: 2015-09-26 | J125: =I125-H125 -> 2 | K125: Camping | L125: York, ME | P125: 63 Shore Dr, Cape Neddick, ME | Q125: 43.188058 | R125: -70.60531
A127: 2015-11-21 | B127: 2015-11-22 | C127: =B127-A127 -> 1 | D127: Catskills | E127: NY | H127: 2015-11-21 | I127: 2015-11-22 | J127: 1 | K127: Quality Inn | L127: Albany, NY | M127: 1 | P127: 1632 Central Ave, Albany, NY | Q127: 42.719656 | R127: -73.837359
A129: 2016-01-01 | B129: 2016-01-03 | C129: =B129-A129 -> 2 | D129: Ithaca | E129: NY | H129: 2016-01-01 | I129: 2016-01-03 | J129: =I129-H129 -> 2 | K129: Holiday Inn | L129: Oneonta, NY | M129: 2 | N129: 10000 | P129: 5206 NY-23, Oneonta, NY | Q129: 42.447117 | R129: -75.027306
A131: 2016-02-12 | B131: 2016-03-06 | C131: =B131-A131 -> 23 | D131: Preedom | E131: TX | H131: 2016-02-12 | I131: 2016-02-13 | J131: 1 | K131: Holiday Inn | L131: Mt Kisco, NY | M131: 1 | N131: 10000 | P131: One Holiday Inn Dr, Mt Kisco, NY | Q131: 41.220214 | R131: -73.723516
H132: 2016-02-13 | I132: 2016-02-14 | J132: 1 | K132: Econo Lodge | L132: Chesapeake, VA | M132: 1 | P132: 2222 S Military Hwy, Chesapeake, VA | Q132: 36.777021 | R132: -76.268471
H133: 2016-02-14 | I133: 2016-02-15 | J133: 1 | K133: Holiday Inn Ex | L133: Douglas, GA | M133: 1 | N133: 5000 | P133: 1636 S Peterson Ave, Douglas, GA | Q133: 31.483603 | R133: -82.850008
H134: 2016-02-15 | I134: 2016-02-17 | J134: 2 | K134: Holiday Inn | L134: Houma, LA | M134: 1 | N134: 5000 | P134: 1800 Martin Luther King Blvd, Houma, LA | Q134: 29.618609 | R134: -90.756783
H135: 2016-02-17 | I135: 2016-02-18 | J135: 1 | K135: Candlewood Suites | L135: Bryan, TX | M135: 2 | N135: 10000 | P135: 3021 Plaza Centre Ct, Bryan, TX | Q135: 30.646441 | R135: -96.303357
H136: 2016-02-18 | I136: 2016-02-19 | J136: 1 | K136: Candlewood Suites | L136: Round Rock, TX | M136: 1 | N136: 10000 | P136: 521 S Interstate 35, Round Rock, TX | Q136: 30.506016 | R136: -97.683385
H137: 2016-02-19 | I137: 2016-02-28 | J137: 9 | K137: Conrad | L137: Del Rio, TX | P137: 211 Quail Creek Dr, Del Rio, TX | Q137: 29.412427 | R137: -100.913994
H138: 2016-02-28 | I138: 2016-02-29 | J138: 1 | K138: Candlewood Suites | L138: Bryan, TX | O138: 98 | P138: 3021 Plaza Centre Ct, Bryan, TX | Q138: 30.646441 | R138: -96.303357
H139: 2016-02-29 | I139: 2016-03-01 | J139: 1 | K139: Holiday Inn | L139: Brookhaven, MS | M139: 1 | N139: 5000 | P139: 1212 Brookway Blvd, Brookhaven, MS | Q139: 31.579816 | R139: -90.473278
H140: 2016-03-01 | I140: 2016-03-02 | J140: 1 | K140: Holiday Inn Ex | L140: New Albany, MS | M140: 1 | N140: 5000 | P140: 300 Hwy 30 W, New Albany, MS | Q140: 34.495484 | R140: -89.033462
H141: 2016-03-02 | I141: 2016-03-03 | J141: 1 | K141: Sleep Inn | L141: Cave City, KY | P141: 801 Mammoth Cave St, Cave City, KY | Q141: 37.137349 | R141: -85.972194
H142: 2016-03-03 | I142: 2016-03-04 | J142: 1 | K142: Candlewood Suites | L142: Logan, WV | M142: 1 | N142: 5000 | P142: 743 Stratton St, Logan, WV | Q142: 37.843273 | R142: -81.978035
H143: 2016-03-04 | I143: 2016-03-05 | J143: 1 | K143: Comfort Inn | L143: Chambersburg, PA | P143: 3648 Olde Scotland Rd, Chambersburg, PA | Q143: 39.964665 | R143: -77.575714
H144: 2016-03-05 | I144: 2016-03-06 | J144: 1 | K144: Holiday Inn | L144: Oneonta, NY | O144: 85 | P144: 5206 NY-23, Oneonta, NY | Q144: 42.447117 | R144: -75.027306
A146: 2016-05-17 | B146: 2016-05-26 | C146: =B146-A146 -> 9 | D146: Ethan & Stephanie | E146: MI, ON | H146: 2016-05-17 | I146: 2016-05-18 | J146: =I146-H146 -> 1 | K146: Holiday Inn | L146: Plattsburgh, NY | M146: 1 | N146: 5000 | P146: 406 NY-3, Plattsburgh, NY | Q146: 44.697111 | R146: -73.487842
H147: 2016-05-18 | I147: 2016-05-19 | J147: 1 | K147: Holiday Inn Ex | L147: Woodstock, ON | M147: 1 | N147: 5000 | P147: 510 Norwich Ave, Woodstock, ON | Q147: 43.114651 | R147: -80.738106
H148: 2016-05-19 | I148: 2016-05-21 | J148: 2 | K148: Lynne's | L148: West Bloomfield, MI | P148: 4117 Strathdale Ln, West Bloomfield Twp, MI | Q148: 42.578823 | R148: -83.338894
H149: 2016-05-21 | I149: 2016-05-22 | J149: 1 | K149: Holiday Inn | L149: Marquette, MI | P149: 1951 U. S. 41 West, Marquette, MI | Q149: 46.546112 | R149: -87.429767
H150: 2016-05-22 | I150: 2016-05-23 | J150: 1 | K150: Holiday Inn Ex | L150: Superior, WI | O150: 118 | P150: 303 2nd Ave E, Superior, WI | Q150: 46.723146 | R150: -92.072206
H151: 2016-05-23 | I151: 2016-05-24 | J151: 1 | K151: Holiday Inn Ex | L151: Thunder Bay, ON | O151: 157 | P151: 1041 Carrick St, Thunder Bay, ON | Q151: 48.405636 | R151: -89.248875
H152: 2016-05-24 | I152: 2016-05-25 | J152: 1 | K152: Holiday Inn Ex | L152: Sault Ste Marie, ON | O152: 129 | P152: 320 Bay St, Sault Ste. Marie, ON | Q152: 46.512667 | R152: -84.336206
H153: 2016-05-25 | I153: 2016-05-26 | J153: 1 | K153: Holiday Inn Ex | L153: Malone, NY | O153: 135 | P153: 3351 US-11, Malone, NY | Q153: 44.848915 | R153: -74.316384
A155: 2016-06-10 | B155: 2016-06-11 | C155: =B155-A155 -> 1 | D155: Ringo | E155: NH | H155: 2016-06-10 | I155: 2016-06-11 | J155: 1 | K155: Holiday Inn Ex | L155: Rochester, NH | O155: 167 | P155: 77 Farmington Rd, Rochester, NH | Q155: 43.332764 | R155: -71.006307
A157: 2016-09-09 | B157: 2016-09-24 | C157: =B157-A157 -> 15 | D157: Danielle & Joe | E157: ON | H157: 2016-09-09 | I157: 2016-09-10 | J157: =I157-H157 -> 1 | K157: Holiday Inn Ex | L157: Malone, NY | M157: 1 | N157: 5000 | P157: 3351 US-11, Malone, NY | Q157: 44.848915 | R157: -74.316384
H158: 2016-09-10 | I158: 2016-09-11 | J158: 1 | K158: Holiday Inn Ex | L158: Mississauga, On | N158: 15000 | O158: 60 | P158: 40 Admiral Blvd, Mississauga, ON | Q158: 43.643952 | R158: -79.701815
H159: 2016-09-11 | I159: 2016-09-12 | J159: 1 | K159: Crowne Plaza | L159: Niagara Falls, ON | O159: 346 | P159: 5685 Falls Ave, Niagara Falls, ON | Q159: 43.091949 | R159: -79.071476
H160: 2016-09-12 | I160: 2016-09-14 | J160: 2 | K160: Holiday Inn Ex | L160: Collingwood, ON | O160: 296 | P160: 4 Balsam St, Collingwood, ON | Q160: 44.502095 | R160: -80.234195
H161: 2016-09-14 | I161: 2016-09-15 | J161: 1 | K161: Red Lodge | L161: Manitoulin Island, ON | P161: 363 Red Lodge Rd, Sheguiandah, ON | Q161: 45.841403 | R161: -82.033679
H162: 2016-09-15 | I162: 2016-09-17 | J162: 2 | K162: Holiday Inn Ex | L162: Sault Ste Marie, ON | O162: 375 | P162: 320 Bay St, Sault Ste. Marie, ON | Q162: 46.512667 | R162: -84.336206
H163: 2016-09-17 | I163: 2016-09-18 | J163: 1 | K163: Holiday Inn | L163: Sudbury, ON | O163: 128 | P163: 1696 Regent St, Sudbury, ON | Q163: 46.456004 | R163: -81.00563
H164: 2016-09-18 | I164: 2016-09-19 | J164: 1 | K164: Holiday Inn Ex | L164: Huntsville, ON | O164: 176 | P164: 100 Howland Dr, Huntsville, ON | Q164: 45.34234 | R164: -79.229158
H165: 2016-09-19 | I165: 2016-09-22 | J165: 3 | K165: AirBNB | L165: Wasaga Beach, ON | O165: 310 | P165: 34 William Ave, Wasaga Beach, ON | Q165: 44.478927 | R165: -80.14122
H166: 2016-09-22 | I166: 2016-09-23 | J166: 1 | K166: Holiday Inn Ex | L166: Pembroke, ON | M166: 1 | N166: 5000 | P166: 8 International Dr, Pembroke, ON | Q166: 45.800868 | R166: -77.11579
H167: 2016-09-23 | I167: 2016-09-24 | J167: 1 | K167: Holiday Inn Ex | L167: Malone, NY | M167: 1 | P167: 3351 US-11, Malone, NY | Q167: 44.848915 | R167: -74.316384
A169: 2016-12-10 | B169: 2016-12-11 | C169: =B169-A169 -> 1 | D169: Chad | E169: ME | H169: 2016-12-10 | I169: 2016-12-11 | J169: =I169-H169 -> 1 | K169: Harbor House Inn | L169: Boothbay, ME | P169: 80 McKown St, Boothbay Harbor, ME | Q169: 43.851343 | R169: -69.63073
A171: 2017-02-10 | B171: 2017-03-19 | C171: =B171-A171 -> 37 | D171: Preedom | E171: FL, TX | H171: 2017-02-10 | I171: 2017-02-11 | J171: =I171-H171 -> 1 | K171: Holiday Inn | L171: Danbury, CT | M171: 1 | N171: 5000 | P171: 80 Newtown Rd, Danbury, CT | Q171: 41.410018 | R171: -73.416031
H172: 2017-02-11 | I172: 2017-02-12 | J172: 1 | K172: Holiday Inn Ex | L172: Raleigh, NC | M172: 1 | N172: 5000 | P172: 3618 New Bern Ave, Raleigh, NC | Q172: 35.796296 | R172: -78.578403
H173: 2017-02-12 | I173: 2017-02-13 | J173: 1 | K173: Holiday Inn Resort | L173: Hilton Head, SC | O173: 99 | P173: 1 S Forest Beach Dr, Hilton Head Island, SC | Q173: 32.140952 | R173: -80.752064
H174: 2017-02-13 | I174: 2017-02-14 | J174: 1 | K174: Phyllis & Thad | L174: New Port Richey, FL | P174: 5043 Coco Plum Cir, New Port Richey, FL | Q174: 28.232612 | R174: -82.702287
H175: 2017-02-14 | I175: 2017-02-19 | J175: 5 | K175: Holiday Inn | L175: Kissimmee, FL | O175: 670 | P175: 5711 W Irlo Bronson Memorial Hwy, Kissimmee, FL | Q175: 28.333886 | R175: -81.512969
H176: 2017-02-19 | I176: 2017-02-25 | J176: 6 | K176: AirBNB | L176: Bradenton, FL | O176: 654 | P176: 1122 143rd St NE, Bradenton, FL | Q176: 27.519501 | R176: -82.397677
H177: 2017-02-25 | I177: 2017-02-26 | J177: 1 | K177: Holiday Inn Ex | L177: Orange Beach, AL | O177: 121 | P177: 24700 Perdido Beach Blvd, Orange Beach, AL | Q177: 30.264604 | R177: -87.603081
H178: 2017-02-26 | I178: 2017-02-27 | J178: 1 | K178: Holiday Inn Ex | L178: Galveston, TX | O178: 86 | P178: 8628 Seawall Blvd, Galveston, TX | Q178: 29.253208 | R178: -94.850716
H179: 2017-02-27 | I179: 2017-03-03 | J179: 4 | K179: Conrad | L179: Del Rio, TX | P179: 211 Quail Creek Dr, Del Rio, TX | Q179: 29.412427 | R179: -100.913994
H180: 2017-03-03 | I180: 2017-03-04 | J180: 1 | K180: Holiday Inn Ex | L180: New Iberia, LA | M180: 1 | N180: 5000 | P180: 318 West Hwy, 90 Frontage Rd, New Iberia, LA | Q180: 29.98316 | R180: -91.855471
H181: 2017-03-04 | I181: 2017-03-05 | J181: 1 | K181: Holiday Inn Club | L181: Panama City Beach, FL | M181: 1 | N181: 0 | P181: 17001 Front Beach Rd, Panama City Beach, FL | Q181: 30.221836 | R181: -85.888068
H182: 2017-03-05 | I182: 2017-03-11 | J182: 6 | K182: AirBNB | L182: Bradenton, FL | O182: 538 | P182: 2512 Riverside Dr E, Bradenton, FL | Q182: 27.502645 | R182: -82.532313
H183: 2017-03-11 | I183: 2017-03-13 | J183: 2 | K183: AirBNB | L183: Homestead, FL | O183: 188 | P183: 707 Southeast 27th Dr, Homestead, FL | Q183: 25.463579 | R183: -80.436586
H184: 2017-03-13 | I184: 2017-03-14 | J184: 1 | K184: Holiday Inn Ex | L184: St Simons Island, GA | M184: 1 | N184: 15000 | P184: 299 Main St, Saint Simons Island, GA | Q184: 31.165672 | R184: -81.400418
H185: 2017-03-14 | I185: 2017-03-16 | J185: =I185-H185 -> 2 | K185: Holiday Inn | L185: Anderson, SC | M185: 2 | N185: 10000 | P185: 3509 Clemson Blvd, Anderson, SC | Q185: 34.54871 | R185: -82.675783
H186: 2017-03-16 | I186: 2017-03-17 | J186: 1 | K186: Holiday Inn Ex | L186: Reidsville, NC | M186: 1 | N186: 5000 | P186: 101 Express Drive, Reidsville, NC | Q186: 36.324144 | R186: -79.643479
H187: 2017-03-17 | I187: 2017-03-18 | J187: 1 | K187: Holiday Inn Ex | L187: California, MD | M187: 1 | N187: 5000 | P187: 45260 Abell House Ln, California, MD | Q187: 38.300775 | R187: -76.509967
H188: 2017-03-18 | I188: 2017-03-19 | J188: 1 | K188: Holiday Inn | L188: Danbury, CT | M188: 1 | N188: 5000 | P188: 80 Newtown Rd, Danbury, CT | Q188: 41.410018 | R188: -73.416031
A190: 2017-06-10 | B190: 2017-06-11 | C190: =B190-A190 -> 1 | D190: Boothbay, Nahant | E190: ME, MA | H190: 2017-06-10 | I190: 2017-06-11 | J190: =I190-H190 -> 1 | K190: Harbor House Inn | L190: Boothbay, ME | P190: 80 McKown St, Boothbay Harbor, ME | Q190: 43.851343 | R190: -69.63073
A192: 2017-06-16 | B192: 2017-06-18 | C192: =B192-A192 -> 2 | D192: Anniversary - RI | E192: RI | H192: 2017-06-16 | I192: 2017-06-18 | J192: =I192-H192 -> 2 | K192: AirBNB | L192: Barrington, RI | O192: 277 | P192: 27 Blanding Ave, Barrington, RI | Q192: 41.744447 | R192: -71.350093
A194: 2017-09-15 | B194: 2017-10-01 | C194: =B194-A194 -> 16 | D194: Gregory+ | E194: NH, VT, MA, CT | H194: 2017-09-15 | I194: 2017-09-16 | J194: 1 | K194: Holiday Inn | L194: Seaford, DE | O194: 116 | P194: 24058 Sussex Hwy, Seaford, DE | Q194: 38.651094 | R194: -75.595088
E195: NY, NJ, DE, MD | H195: 2017-09-16 | I195: 2017-09-17 | J195: 1 | K195: Holiday Inn | L195: Williamsburg, VA | M195: 1 | N195: 5000 | P195: 480 McLaws Cir, Williamsburg, VA | Q195: 37.249419 | R195: -76.661657
E196: VA, NC, SC, GA | H196: 2017-09-17 | I196: 2017-09-19 | J196: 2 | K196: Holiday Inn | L196: Greenville, SC | M196: 2 | N196: 10000 | P196: 31 Market Point Dr, Greenville, SC | Q196: 34.82245 | R196: -82.301304
E197: TN, AL, KY, IL | H197: 2017-09-19 | I197: 2017-09-21 | J197: 2 | K197: Staybridge Suites | L197: Oak Ridge, TN | M197: 2 | N197: 10000 | P197: 420 S Illinois Ave, Oak Ridge, TN | Q197: 36.003478 | R197: -84.251388
E198: MO, KS, NE, IA | H198: 2017-09-21 | I198: 2017-09-22 | J198: 1 | K198: Yurt | L198: Cloudland Canyon, GA | O198: 107 | P198: 122 Cloudland Canyon Park Rd, Rising Fawn, GA | Q198: 34.833489 | R198: -85.486605
E199: IN, OH, WV, PA | H199: 2017-09-22 | I199: 2017-09-23 | J199: 1 | K199: Holiday Inn | L199: Florence, AL | O199: 120 | P199: 180 Etta Gray Street, Florence, AL | Q199: 34.82875 | R199: -87.624062
H200: 2017-09-23 | I200: 2017-09-24 | J200: 1 | K200: Holiday Inn | L200: Mt Vernon, IL | O200: 141 | P200: 300 Potomac Blvd, Mt Vernon, IL | Q200: 38.318313 | R200: -88.95523
H201: 2017-09-24 | I201: 2017-09-25 | J201: 1 | K201: Holiday Inn | L201: Council Bluffs, IA | O201: 121 | P201: 2211 S 32nd St, Council Bluffs, IA | Q201: 41.241616 | R201: -95.892935
H202: 2017-09-25 | I202: 2017-09-26 | J202: 1 | K202: Holiday Inn | L202: Peru, IL | O202: 128 | P202: 5253 Trompeter Rd, Peru, IL | Q202: 41.370875 | R202: -89.127007
H203: 2017-09-26 | I203: 2017-09-27 | J203: 1 | K203: Candlewood Suites | L203: Elkhart, IN | M203: 1 | N203: 5000 | P203: 300 Northpointe Blvd, Elkhart, IN | Q203: 41.735656 | R203: -85.97779
H204: 2017-09-27 | I204: 2017-09-28 | J204: 1 | K204: Holiday Inn | L204: Fairborn, OH | M204: 1 | N204: 5000 | P204: 2800 Presidential Dr, Fairborn, OH | Q204: 39.77618 | R204: -84.057878
H205: 2017-09-28 | I205: 2017-09-29 | J205: 1 | K205: Holiday Inn | L205: Belle Vernon, PA | M205: 1 | N205: 5000 | P205: 181 Finley Rd, Belle Vernon, PA | Q205: 40.138715 | R205: -79.835827
H206: 2017-09-29 | I206: 2017-09-30 | J206: 1 | K206: Holiday Inn | L206: Dubois, PA | M206: 1 | N206: 5000 | P206: 1690 Rich Hwy, DuBois, PA | Q206: 41.140059 | R206: -78.782182
H207: 2017-09-30 | I207: 2017-10-01 | J207: 1 | K207: Candlewood Suites | L207: Sayre, PA | M207: 1 | N207: 5000 | P207: 2775 Elmira St, Sayre, PA | Q207: 41.987192 | R207: -76.546489
A209: 2017-11-23 | B209: 2017-11-26 | C209: =B209-A209 -> 3 | D209: CT Waterfalls | E209: CT | H209: 2017-11-23 | I209: 2017-11-26 | J209: =I209-H209 -> 3 | K209: Holiday Inn | L209: Meriden, CT | M209: 3 | N209: 30000 | P209: 2104 N Broad St, Meriden, CT | Q209: 41.573681 | R209: -72.770813
A211: 2018-02-08 | B211: 2018-04-01 | C211: =B211-A211 -> 52 | D211: Bradenton | E211: NH, VT, MA, CT, | H211: 2018-02-08 | I211: 2018-02-09 | J211: 1 | K211: Holiday Inn | L211: Petersburg, VA | O211: 119 | P211: 5679 Boydton Plank Rd, Petersburg, VA | Q211: 37.194684 | R211: -77.468268
E212: NY, NJ, DE, MD | H212: 2018-02-09 | I212: 2018-02-10 | J212: 1 | K212: Holiday Inn | L212: Jacksonville, FL | O212: 110 | P212: 1200 Airport Rd, Jacksonville, FL | Q212: 30.481917 | R212: -81.650092
E213: VA, NC, SC, GA | H213: 2018-02-10 | I213: 2018-02-12 | J213: 2 | K213: Phyllis & Thad | L213: New Port Richie, FL | P213: 5043 Coco Plum Cir, New Port Richey, FL | Q213: 28.232612 | R213: -82.702287
E214: FL, AL, MS, LA | H214: 2018-02-12 | I214: 2018-02-24 | J214: 12 | K214: Twin Rivers Cieba | L214: Bradenton, FL | O214: 1257 | P214: 1420 1st Ave E #3, Bradenton, FL | Q214: 27.498675 | R214: -82.549146
E215: TX | H215: 2018-02-24 | I215: 2018-03-03 | J215: 7 | K215: Bungalow | L215: Holmes Beach, FL | O215: 923 | P215: 3017 Ave E #6, Holmes Beach, FL | Q215: 27.490179 | R215: -82.707518
H216: 2018-03-03 | I216: 2018-03-07 | J216: 4 | K216: Camper | L216: Terra Ceia, FL | O216: 488 | P216: 902 Bayshore Dr, Terra Ceia, FL | Q216: 27.56519 | R216: -82.589683
H217: 2018-03-07 | I217: 2018-03-08 | J217: 1 | K217: Candlewood Suites | L217: Pensacola, FL | M217: 1 | N217: 10000 | P217: 1953 Northcross Ln, Pensacola, FL | Q217: 30.507499 | R217: -87.219741
H218: 2018-03-08 | I218: 2018-03-09 | J218: 1 | K218: Holiday Inn | L218: Port Arthur, TX | M218: 1 | N218: 10000 | P218: 2929 Jimmy Johnson Blvd, Port Arthur, TX | Q218: 29.938919 | R218: -93.981758
H219: 2018-03-09 | I219: 2018-03-10 | J219: 1 | K219: Candlewood Suites | L219: Kenedy, TX | M219: 1 | N219: 5000 | P219: 304 Business Park Dr, Kenedy, TX | Q219: 28.835859 | R219: -97.863643
H220: 2018-03-10 | I220: 2018-03-16 | J220: 6 | K220: Conrad | L220: Del Rio, TX | P220: 211 Quail Creek Dr, Del Rio, TX | Q220: 29.412427 | R220: -100.913994
H221: 2018-03-16 | I221: 2018-03-17 | J221: 1 | K221: Holiday Inn | L221: LaFayette, LA | M221: 1 | N221: 10000 | P221: 2219 NW Evangeline Throughway, Lafayette, LA | Q221: 30.253133 | R221: -92.01687
H222: 2018-03-17 | I222: 2018-03-18 | J222: 1 | K222: Holiday Inn | L222: Tallahassee, FL | O222: 136 | P222: 1653 Raymond Diehl Rd, Tallahassee, FL | Q222: 30.500294 | R222: -84.250319
H223: 2018-03-18 | I223: 2018-03-29 | J223: 11 | K223: Bayou Get-Away Cabin | L223: Sarasota, FL | O223: 1160 | P223: 2423 Walker Cir, Sarasota, FL | Q223: 27.356961 | R223: -82.546525
H224: 2018-03-29 | I224: 2018-03-30 | J224: 1 | K224: Staybridge Suites | L224: Savannah, GA | O224: 159 | P224: 1 Clyde E Martin Dr, Savannah, GA | Q224: 32.140616 | R224: -81.237792
H225: 2018-03-30 | I225: 2018-03-31 | J225: 1 | K225: Candlewood Suites | L225: Wilson, NC | M225: 1 | N225: 5000 | P225: 2915 Independence Dr. West, Wilson, NC | Q225: 35.737932 | R225: -77.957529
H226: 2018-03-31 | I226: 2018-04-01 | J226: 1 | K226: Candlewood Suites | L226: Nanuet, NY | O226: 110 | P226: 20 Overlook Blvd, Nanuet, NY | Q226: 41.106856 | R226: -74.027387
A228: 2018-05-08 | B228: 2018-05-15 | C228: =B228-A228 -> 7 | D228: Del Rio | E228: TX | H228: 2018-05-08 | I228: 2018-05-14 | J228: 6 | K228: Airbnb | L228: Del Rio, TX | O228: 620 | P228: 313 Ama Caro Dr, Del Rio, TX | Q228: 29.383892 | R228: -100.927507
H229: 2018-05-14 | I229: 2018-05-15 | J229: 1 | K229: Holiday Inn Ex | L229: San Antonio, TX | O229: 113 | P229: 91 NE Interstate 410 Loop, San Antonio, TX | Q229: 29.521549 | R229: -98.486136
A231: 2018-05-18 | B231: 2018-05-20 | C231: =B231-A231 -> 2 | D231: Angela | E231: ME | H231: 2018-05-18 | I231: 2018-05-20 | J231: =I231-H231 -> 2 | K231: Holiday Inn Ex | L231: Bangor, ME | O231: 215 | P231: 404 Odlin Rd, Bangor, ME | Q231: 44.786241 | R231: -68.813013
A233: 2018-08-11 | B233: 2018-08-19 | C233: =B233-A233 -> 8 | D233: Parker | E233: CO | H233: 2018-08-11 | I233: 2018-08-19 | J233: =I233-H233 -> 8 | K233: Conrad's Rental | L233: Parker, CO | P233: 21090 Saddleback Cir, Parker, CO | Q233: 39.502228 | R233: -104.745497
A235: 2018-09-15 | B235: 2018-09-16 | C235: =B235-A235 -> 1 | D235: Danielle | E235: MA | H235: 2018-09-15 | I235: 2018-09-16 | J235: =I235-H235 -> 1 | K235: Holiday Inn | L235: Hudson, MA | P235: 121 Coolidge St, Hudson, MA | Q235: 42.397689 | R235: -71.602135
A237: 2018-09-29 | B237: 2018-10-14 | C237: =B237-A237 -> 15 | D237: Parker | E237: CO | H237: 2018-09-29 | I237: 2018-10-14 | J237: =I237-H237 -> 15 | K237: Conrad's Rental | L237: Parker, CO | P237: 21090 Saddleback Cir, Parker, CO | Q237: 39.502228 | R237: -104.745497
A239: 2018-11-02 | B239: 2018-11-03 | C239: =B239-A239 -> 1 | D239: Albany/Conrad | E239: NY | H239: 2018-11-02 | I239: 2018-11-03 | J239: =I239-H239 -> 1 | K239: Marriott | L239: Albany, NY | O239: 140 | P239: 189 Wolf Rd, Albany, NY | Q239: 42.720726 | R239: -73.799844
A241: 2018-11-15 | B241: 2018-11-17 | C241: =B241-A241 -> 2 | D241: Anne's Mom | E241: VT | H241: 2018-11-15 | I241: 2018-11-17 | J241: =I241-H241 -> 2 | K241: Holiday Inn | L241: Rutland, VT | M241: 2 | N241: 30000 | P241: 476 Holiday Dr, Rutland, VT | Q241: 43.58322 | R241: -72.970149
A243: 2019-02-02 | B243: 2019-03-24 | C243: =B243-A243 -> 50 | D243: Bradenton | E243: FL | H243: 2019-02-02 | I243: 2019-02-03 | J243: =I243-H243 -> 1 | K243: Holiday Inn Ex | L243: Seaford, DE | M243: 1 | N243: 15000 | P243: 24058 Sussex Hwy, Seaford, DE | Q243: 38.651094 | R243: -75.595088
H244: 2019-02-03 | I244: 2019-02-04 | J244: =I244-H244 -> 1 | K244: Holiday Inn Ex | L244: Pembroke, NC | M244: 1 | N244: 10000 | P244: 605 Redmond Rd, Pembroke, NC | Q244: 34.686027 | R244: -79.216093
H245: 2019-02-04 | I245: 2019-02-05 | J245: 1 | K245: Candlewood Suites | L245: Jacksonville, FL | M245: 1 | N245: 10000 | P245: 2700 Jane St, Jacksonville, FL | Q245: 30.350478 | R245: -81.550654
H246: 2019-02-05 | I246: 2019-02-06 | J246: 1 | K246: Holiday Inn Ex | L246: Crystal River, FL | O246: 114 | P246: 1203 NE 5th St, Crystal River, FL | Q246: 28.898414 | R246: -82.571493
H247: 2019-02-06 | I247: 2019-02-08 | J247: 2 | K247: Phyllis & Thad | L247: New Port Richey, FL | P247: 5113 Coquina Cir, New Port Richey, FL | Q247: 28.23328 | R247: -82.699896
H248: 2019-02-08 | I248: 2019-02-09 | J248: 1 | K248: Holiday Inn | L248: Sarasota, FL | O248: 238 | P248: 8009 15th St E, Sarasota, FL | Q248: 27.397692 | R248: -82.546456
H249: 2019-02-09 | I249: 2019-02-16 | J249: 7 | K249: Tiny House | L249: Sarasota, FL | O249: 636 | P249: 2459 Ixora Ave, Sarasota, FL | Q249: 27.358917 | R249: -82.55038
H250: 2019-02-16 | I250: 2019-02-23 | J250: 7 | K250: The Sea House | L250: Bradenton, FL | O250: 657 | P250: 1219 65th St NW, Bradenton, FL | Q250: 27.51033 | R250: -82.625807
H251: 2019-02-23 | I251: 2019-03-02 | J251: 7 | K251: Sunny Bradenton Retreat | L251: Bradenton, FL | O251: 577 | P251: 403 31st St W, Bradenton, FL | Q251: 27.496364 | R251: -82.59239
H252: 2019-03-02 | I252: 2019-03-21 | J252: 19 | K252: Riverfront Retreat | L252: Bradenton, FL | O252: 2722 | P252: 506 Riverside Dr E Upstairs, Bradenton, FL | Q252: 27.498688 | R252: -82.558455
... 93 more rows

Sheet Lodging
A1: When | B1: til | C1: =TEXT(SUM(C2:C1013), "0") & " Days" -> 42079 Days | D1: What | E1: Where | F1: With | G1: Why | J1: =TEXT(SUM(J2:J1013), "0") & " Days" -> 7 Days | O1: =TEXT(SUM(O2:O1013), "0") & " Free" -> 15 Free
A2: 2010-06-18 | B2: 2010-06-19 | C2: =B2-A2 -> 1 | D2: Strong House Inn | E2: Vergennes, VT | F2: C&M | G2: Valerie&Jason
D4: Comfort Suites | E4: Mahwah, NJ | G4: Airgas
A5: 2010-07-26 | B5: 2010-07-27 | C5: 1 | D5: Comfort Inn | E5: Montgomeryville, PA | G5: Airgas
A6: 2010-07-27 | B6: 2010-07-28 | C6: 1 | D6: Comfort Suites | E6: East Brunswick, NJ | G6: Airgas
C8: 0 | D8: Donna Sue | E8: VT | F8: D&R
A10: 2010-09-02 | B10: 2010-09-04 | C10: =B10-A10 -> 2 | D10: Bill & Cheryl | E10: Louisville, CO
A12: 2010-09-04 | B12: 2010-09-12 | C12: 8 | D12: Conrad | E12: Colorado Springs, CO
A14: 2010-11-26 | B14: 2010-11-27 | C14: =B14-A14 -> 1 | D14: Econo Lodge | E14: Monticello, NY
A16: 2010-12-08 | B16: 2010-12-09 | C16: 1 | D16: Comfort Suites | E16: Southington, CT | G16: Airgas
A18: 2011-05-12 | B18: 2011-06-11 | C18: =B18-A18 -> 30 | D18: Comfort Inn | E18: Beauport, QC | F18: Mom&Dad
A21: 2011-06-10 | B21: 2011-06-14 | C21: 4 | D21: Quebec | E21: QC
F22: Mom&Dad
A23: 2011-06-13 | B23: 2011-06-14 | C23: 1 | D23: Comfort Inn | E23: Riviere-Du-Loup, QC | F23: Mom&Dad | J23: 1
A24: 2011-07-11 | B24: 2011-07-12 | C24: 1 | D24: Sleep Inn | E24: Niantic, CT | G24: Airgas
D26: Sleep Inn | E26: Niantic, CT | G26: Airgas
D28: Sleep Inn | E28: Londonderry, NH | G28: Airgas
D30: Sleep Inn | E30: Niantic, CT | G30: Airgas
D32: Comfort Inn | E32: Cortland, NY | G32: Airgas
C34: =B34-A34 -> 0 | D34: Comfort Inn | E34: Revere, MA
A36: 2011-11-08 | B36: 2011-11-17 | C36: =B36-A36 -> 9 | D36: Bill & Cheryl | E36: Louisville, CO
A40: 2011-11-25 | B40: 2011-11-26 | C40: =B40-A40 -> 1 | D40: Econo Lodge | E40: Lake Placid, NY
A42: 2012-05-22 | B42: 2012-05-23 | C42: =B42-A42 -> 1 | D42: Sleep Inn | E42: Londonderry, NH | H42: 2012-05-22 | I42: 2012-05-23 | K42: Embassy Suites | L42: Independence, OH
A44: 2012-05-22 | B44: 2012-05-31 | C44: =B44-A44 -> 9 | D44: Conrad | E44: Colorado Springs, CO
A47: 2012-06-16 | B47: 2012-06-17 | C47: =B47-A47 -> 1 | D47: Crowne Plaza | E47: Nashua, NH
A59: 2012-06-17 | B59: 2012-06-18 | C59: =B59-A59 -> 1 | D59: Quality Inn | E59: St Andre, NB | H59: 2012-06-17 | I59: 2012-06-18 | K59: Embassy Suites | L59: Independence, OH
A61: 2012-06-18 | B61: 2012-06-19 | C61: =B61-A61 -> 1 | E61: Port Hawksbury, NS
A81: 2012-06-19 | B81: 2013-03-23 | C81: =B81-A81 -> 277 | D81: Comfort Inn | E81: Corner Brook, NL
A86: 2012-06-20 | B86: 2012-06-22 | C86: =B86-A86 -> 2 | D86: Triple Rose B&B | E86: St Anthony, NL | H86: 2012-06-20 | I86: 2012-06-22 | J86: =I86-H86 -> 2 | K86: Ross&Kit | L86: Oak Bluffs, MA
A88: 2012-06-24 | B88: 2012-06-25 | C88: =B88-A88 -> 1 | D88: Torrent River Inn | E88: Hawkes Bay, NL
A94: 2012-06-25 | B94: 2012-06-27 | C94: =B94-A94 -> 2 | D94: Robin Hood Hotel | E94: Grand Falls - Windsor, NL
I95: 2013-07-01
A97: 2012-06-27 | B97: 2012-06-28 | C97: =B97-A97 -> 1 | D97: Hotel Port aux basques | E97: Port aux basques, NL
C99: =B99-A99 -> 0 | D99: Chad | E99: OH
K100: Chad | L100: Bedford, OH
D103: 4th of Jluy | E103: MA
A105: 2012-06-28 | B105: 2012-06-29 | C105: =B105-A105 -> 1 | D105: Mountain View Motel | E105: Pleasant Bay, NS
A107: 2012-06-29 | B107: 2012-06-30 | C107: =B107-A107 -> 1 | E107: Woodstock, NB
K112: Conrad | L112: Del Rio, TX
C118: =B118-A118 -> 0 | D118: South Carolina | E118: SC | F118: D&R&J&K
I119: 2015-03-16 | L119: Kitty Hawk, SC
H120: 2015-03-16 | I120: 2015-03-18 | L120: Charleston, SC
H121: 2015-03-18 | L121: Greenville, SC
A124: 2015-05-23
I125: 2015-05-25
A127: 2015-09-24 | B127: 2015-09-25 | C127: =B127-A127 -> 1 | H127: 2015-09-24 | I127: 2015-09-25 | J127: =I127-H127 -> 1 | K127: Camping | L127: York, ME
A129: 2013-01-19 | B129: 2013-01-20 | C129: =B129-A129 -> 1 | D129: Quality Inn | E129: Hyde Park, NY | I129: 2015-11-22
A131: 2016-01-01 | B131: 2016-01-03 | C131: =B131-A131 -> 2 | D131: Ithaca | E131: NY | H131: 2016-01-01 | I131: 2016-01-03 | J131: =I131-H131 -> 2 | L131: Oneonta, NY
A133: 2016-02-12 | B133: 2013-01-21 | C133: =B133-A133 -> -1117 | D133: Quality Inn | E133: Waynesboro, VA | H133: 2016-02-12 | L133: Mt Kisco, NY | O133: 1
I134: 2016-02-14
H135: 2016-02-14 | I135: 2016-02-15 | L135: Douglas, GA
H136: 2016-02-15 | I136: 2016-02-17 | L136: Houma, LA
H137: 2016-02-17 | I137: 2016-02-19 | L137: Austin, TX
H138: 2016-02-19 | K138: Conrad | L138: Del Rio, TX
I139: 2016-02-29
H140: 2016-02-29 | I140: 2016-03-01 | K140: Holiday Inn | L140: Brookhaven, MS
H141: 2016-03-01 | L141: New Albany, MS
I142: 2016-03-03
H143: 2016-03-03 | L143: Logan, WV | O143: 1
I144: 2016-03-05
H145: 2016-03-05 | I145: 2016-03-06 | L145: Oneonta, NY
A147: 2013-01-21 | B147: 2013-01-22 | C147: =B147-A147 -> 1 | D147: Quality Inn | E147: Salem, VA | O147: 1
I154: 2016-05-26
B156: 2016-06-11 | D156: Ringo | E156: NH | I156: 2016-06-11
A158: 2013-01-22 | B158: 2013-01-23 | C158: =B158-A158 -> 1 | D158: Candlewood Suites | E158: Enterprise, AL | O158: 1
O159: 1
A160: 2013-01-24 | B160: 2013-02-04 | C160: =B160-A160 -> 11 | D160: Conrad | E160: Del Rio, TX
A161: 2013-02-04 | B161: 2013-02-05 | C161: =B161-A161 -> 1 | D161: Quality Inn | E161: Las Cruces, NM
A162: 2013-02-05 | B162: 2013-02-06 | C162: =B162-A162 -> 1 | D162: Janette's | E162: Phoenix, AZ
A163: 2013-02-06 | B163: 2013-02-08 | C163: =B163-A163 -> 2 | D163: Queen Mary | E163: Long Beach, CA
A164: 2013-02-08 | B164: 2013-02-09 | E164: Phoenix, AZ
A165: 2016-09-10 | D165: Holiday Inn Express | E165: Mississauga, On
L166: Wasaga Beach, ON
A167: 2017-02-10 | D167: Holiday Inn | E167: Danbury, CT | O167: 1
A168: 2017-02-11 | D168: Holiday Inn Express | E168: Raleigh, NC | I168: 2016-09-24 | O168: 1
A169: 2017-02-12 | D169: Holiday Inn Resort | E169: Hilton Head, SC
A170: 2016-12-10 | B170: 2016-12-11 | C170: =B170-A170 -> 1 | D170: Chad | E170: ME | H170: 2016-12-10 | I170: 2016-12-11 | J170: =I170-H170 -> 1 | K170: Harbor House Inn | L170: Boothbay, ME
B172: 2017-03-19 | C172: =B172-A172 -> 42813 | D172: Holiday Inn | E172: Beaumont, TX | O172: 1
A173: 2017-02-25 | D173: Holiday Inn Express | E173: Orange Beach, AL | O173: 1
A174: 2017-02-26 | D174: Holiday Inn Express | E174: Galveston, TX | I174: 2017-02-13
H175: 2017-02-13 | K175: Phyllis & Thad | L175: New Port Richey, FL
A176: 2017-03-03 | D176: Holiday Inn Express | E176: New Iberia, LA
K177: AirBNB | L177: Bradenton, FL
A178: 2017-03-04 | D178: Holiday Inn Club | E178: Panama City Beach, FL
A179: 2017-03-13 | D179: Holiday Inn Express | E179: St Simons Island, GA | I179: 2017-02-27
H180: 2017-02-27 | K180: Conrad | L180: Del Rio, TX
A181: 2017-03-14 | B181: 2017-03-16 | C181: =B181-A181 -> 2 | D181: Holiday Inn | E181: Anderson, SC
A182: 2017-03-16 | D182: Holiday Inn Express | E182: Reidsville, NC | I182: 2017-03-05 | O182: 1
H183: 2017-03-05 | I183: 2017-03-11 | K183: AirBNB | L183: Bradenton, FL
H184: 2017-03-11 | K184: AirBNB | L184: Homestead, FL
A185: 2017-03-17 | D185: Holiday Inn Express | E185: California, MD
A186: 2017-03-18 | D186: Holiday Inn | E186: Danbury, CT | O186: 2
O187: 1
O188: 1
I189: 2017-03-19 | O189: 1

Sheet By Year
A1: Year | B1: Nights Away
A2: 2010 | B2: 13
A3: =A2+1 -> 2011 | B3: 28
A4: =A3+1 -> 2012 | B4: 32
A5: 2013 | B5: 52
A6: 2014 | B6: 27
A7: 2015 | B7: 11
A8: 2016 | B8: 51
A9: 2017 | B9: 58
A10: 2018 | B10: 88
A11: 2019 | B11: 91 | C11: =SUM(B2:B11) -> 451
A13: =A11+1 -> 2020 | B13: 33
A14: 2021
A15: 2022
A16: 2023
A17: 2024
A18: 2025
A19: 2026
A20: 2027
A21: 2028
A22: 2029
A23: 2030
A24: 2031
A25: 2032
A26: 2033
A27: 2034
A28: 2035
A29: 2036
A30: 2037
A31: 2038
A32: 2039
A33: 2040

Sheet Query
